fUST/lending_fUST_20250216
["ID","MTS","AMOUNT","RATE_DAILY","PERIOD"]
[353252409,1739717446991,-500.0,9.143e-05,2]
[353252410,1739717447001,-603.24,9.143e-05,2]
[353252411,1739717447010,-2062.71,9.143e-05,2]
[353252412,1739717447021,-1082.1,9.143e-05,2]
[353252413,1739717447031,-500.0,9.143e-05,2]
[353252414,1739717447041,-2122.04,9.143e-05,2]
[353252415,1739717447051,-500.0,9.143e-05,2]
[353252416,1739717447067,-500.0,9.143e-05,2]
[353252417,1739717447077,-639.36,9.143e-05,2]
[353252418,1739717447087,-571.69,9.143e-05,2]
[353252419,1739717447097,-500.0,9.143e-05,2]
[353252420,1739717447107,-561.85,9.143e-05,2]
[353252421,1739717447117,-2105.32,9.143e-05,2]
[353252422,1739717447126,-505.08,9.143e-05,2]
[353252423,1739717447136,-665.07,9.143e-05,2]
[353252424,1739717447145,-500.0,9.143e-05,2]
[353252425,1739717447154,-500.0,9.143e-05,2]
[353252426,1739717447163,-500.0,9.143e-05,2]
[353252427,1739717447253,-832.59,9.143e-05,2]
[353252428,1739717447263,-663.46,9.143e-05,2]
[353252429,1739717447273,-500.0,9.143e-05,2]
[353252430,1739717447283,-596.3,9.143e-05,2]
[353252431,1739717447293,-500.0,9.143e-05,2]
[353252432,1739717447303,-500.0,9.143e-05,2]
[353252433,1739717447313,-529.6,9.143e-05,2]
[353252434,1739717447324,-500.0,9.143e-05,2]
[353252435,1739717447335,-1007.93,9.143e-05,2]
[353252436,1739717447344,-649.34,9.143e-05,2]
[353252437,1739717447354,-500.0,9.143e-05,2]
[353252438,1739717447363,-773.16,9.143e-05,2]
[353252439,1739717447372,-628.1,9.143e-05,2]
[353252440,1739717447382,-500.0,9.144e-05,2]
[353252441,1739717447391,-500.0,9.144e-05,2]
[353252442,1739717447401,-500.0,9.144e-05,2]
[353252443,1739717447411,-566.08,9.144e-05,2]
[353252444,1739717447421,-500.0,9.144e-05,2]
[353252445,1739717447431,-835.74,9.144e-05,2]
[353252446,1739717447440,-500.0,9.144e-05,2]
[353252447,1739717447450,-500.0,9.144e-05,2]
[353252448,1739717447461,-500.0,9.144e-05,2]
[353252449,1739717447470,-500.0,9.144e-05,2]
[353252450,1739717447480,-2081.49,9.144e-05,2]
[353252451,1739717447490,-864.91,9.144e-05,2]
[353252452,1739717447499,-160.0,9.161e-05,3]
[353252453,1739717447509,-150.08,9.175e-05,2]
[353252454,1739717447518,-500.0,9.175e-05,2]
[353252455,1739717447527,-749.48453552,9.175e-05,2]
[353252456,1739717447536,-150.08,9.175e-05,2]
[353252457,1739717447545,-150.08,9.175e-05,2]
[353252458,1739717447555,-991.0,9.175e-05,2]
[353252459,1739717447564,-606.0,9.175e-05,2]
[353252460,1739717447574,-500.0,9.175e-05,2]
[353252461,1739717447583,-838.62306923,9.175e-05,2]
[353252462,1739717447593,-500.0,9.175e-05,2]
[353252463,1739717447603,-500.0,9.175e-05,2]
[353252464,1739717447612,-150.57,9.175e-05,2]
[353252465,1739717447624,-13173.98308483,9.198e-05,2]
[353252466,1739717447633,-168.26547255,9.205e-05,2]
[353252467,1739717447643,-500.0,9.223e-05,2]
[353252468,1739717447654,-1018.0,9.223e-05,2]
[353252469,1739717447663,-3193.03,9.223e-05,2]
[353252470,1739717447673,-2847.83,9.223e-05,2]
[353252471,1739717447683,-6548.19,9.223e-05,2]
[353252472,1739717447693,-1446.62,9.223e-05,2]
[353252473,1739717447702,-2484.47,9.223e-05,2]
[353252474,1739717447711,-500.0,9.223e-05,2]
[353252475,1739717447720,-1155.17,9.223e-05,2]
[353252476,1739717447730,-3114.18,9.223e-05,2]
[353252477,1739717447740,-500.0,9.223e-05,2]
[353252478,1739717447749,-575.73,9.223e-05,2]
[353252479,1739717447758,-1916.86,9.223e-05,2]
[353252480,1739717447768,-500.0,9.223e-05,2]
[353252481,1739717447779,-918.24,9.223e-05,2]
[353252482,1739717447788,-2747.87,9.223e-05,2]
[353252483,1739717447798,-5881.69,9.223e-05,2]
[353252484,1739717447808,-901.54,9.223e-05,2]
[353252485,1739717447817,-856.44,9.224e-05,2]
[353252486,1739717447826,-677.45,9.224e-05,2]
[353252487,1739717447836,-572.99,9.224e-05,2]
[353252488,1739717447846,-932.57,9.224e-05,2]
[353252489,1739717447855,-577.94,9.224e-05,2]
[353252490,1739717447865,-500.0,9.224e-05,2]
[353252491,1739717447875,-568.86,9.224e-05,2]
[353252492,1739717447885,-903.62,9.224e-05,2]
[353252493,1739717447893,-500.0,9.224e-05,2]
[353252494,1739717447903,-597.13,9.224e-05,2]
[353252495,1739717447913,-558.51,9.224e-05,2]
[353252496,1739717447923,-500.0,9.224e-05,2]
[353252497,1739717447934,-500.0,9.224e-05,2]
[353252498,1739717447944,-500.0,9.224e-05,2]
[353252499,1739717447954,-662.85,9.224e-05,2]
[353252500,1739717447964,-555.77,9.224e-05,2]
[353252501,1739717447973,-500.0,9.224e-05,2]
[353252502,1739717447983,-1745.18,9.224e-05,2]
[353252503,1739717447992,-2748.55,9.224e-05,2]
[353252504,1739717448001,-876.5,9.224e-05,2]
[353252505,1739717448010,-1447.48,9.224e-05,2]
[353252506,1739717448020,-500.0,9.224e-05,2]
[353252507,1739717448031,-14686.92,9.224e-05,2]
[353252508,1739717448041,-1062.39,9.224e-05,2]
[353252509,1739717448052,-607.65,9.224e-05,2]
[353252510,1739717448062,-500.0,9.224e-05,2]
[353252511,1739717448073,-1749.63,9.224e-05,2]
[353252512,1739717448083,-885.45,9.224e-05,2]
[353252513,1739717448092,-548.32,9.224e-05,2]
[353252514,1739717448103,-1196.96,9.224e-05,2]
[353252515,1739717448114,-500.0,9.224e-05,2]
[353252516,1739717448125,-636.14,9.224e-05,2]
[353252517,1739717448135,-500.0,9.224e-05,2]
[353252518,1739717448145,-500.0,9.224e-05,2]
[353252519,1739717448156,-1155.98,9.224e-05,2]
[353252520,1739717448166,-599.62,9.224e-05,2]
[353252521,1739717448176,-1131.72,9.224e-05,2]
[353252522,1739717448186,-500.0,9.224e-05,2]
[353252523,1739717448196,-603.68,9.224e-05,2]
[353252524,1739717448206,-500.0,9.224e-05,2]
[353252525,1739717448218,-652.07,9.224e-05,2]
[353252526,1739717448228,-3471.84,9.224e-05,2]
[353252527,1739717448238,-834.32,9.224e-05,2]
[353252528,1739717448250,-13832.39,9.224e-05,2]
[353252529,1739717448261,-1036.59,9.224e-05,2]
[353252530,1739717448271,-500.0,9.224e-05,2]
[353252531,1739717448283,-671.9,9.224e-05,2]
[353252532,1739717448293,-550.61,9.224e-05,2]
[353252533,1739717448303,-35868.36,9.224e-05,2]
[353252534,1739717448313,-500.0,9.225e-05,2]
[353252535,1739717448324,-500.0,9.225e-05,2]
[353252536,1739717448334,-500.0,9.225e-05,2]
[353252537,1739717448345,-500.0,9.225e-05,2]
[353252538,1739717448355,-618.5,9.225e-05,2]
[353252539,1739717448365,-500.0,9.225e-05,2]
[353252540,1739717448375,-769.62,9.225e-05,2]
[353252541,1739717448385,-628.33,9.225e-05,2]
[353252542,1739717448395,-756.53,9.225e-05,2]
[353252543,1739717448406,-153.85974818,9.225e-05,2]
[353252544,1739717448415,-558.49,9.225e-05,2]
[353252545,1739717448426,-500.0,9.225e-05,2]
[353252546,1739717448437,-603.24,9.225e-05,2]
[353252547,1739717448447,-2062.71,9.225e-05,2]
[353252548,1739717448459,-1082.1,9.225e-05,2]
[353252549,1739717448470,-371.04980612,9.225e-05,2]
[353252550,1739717448481,-2122.04,9.225e-05,2]
[353252551,1739717448492,-500.0,9.225e-05,2]
[353252552,1739717448502,-500.0,9.225e-05,2]
[353252553,1739717448513,-639.36,9.225e-05,2]
[353252554,1739717448524,-571.69,9.225e-05,2]
[353252555,1739717448534,-500.0,9.225e-05,2]
[353252556,1739717448545,-561.85,9.225e-05,2]
[353252557,1739717448632,-2105.32,9.225e-05,2]
[353252558,1739717448643,-505.08,9.225e-05,2]
[353252559,1739717448653,-665.07,9.225e-05,2]
[353252560,1739717448663,-500.0,9.225e-05,2]
[353252561,1739717448672,-157.22367894,9.225e-05,2]
[353252562,1739717448682,-500.0,9.225e-05,2]
[353252563,1739717448692,-832.59,9.225e-05,2]
[353252564,1739717448702,-663.46,9.225e-05,2]
[353252565,1739717448711,-500.0,9.225e-05,2]
[353252566,1739717448721,-596.3,9.225e-05,2]
[353252567,1739717448731,-500.0,9.225e-05,2]
[353252568,1739717448741,-500.0,9.225e-05,2]
[353252569,1739717448751,-529.6,9.225e-05,2]
[353252570,1739717448761,-500.0,9.225e-05,2]
[353252571,1739717448772,-1007.93,9.225e-05,2]
[353252572,1739717448782,-649.34,9.225e-05,2]
[353252573,1739717448792,-500.0,9.225e-05,2]
[353252574,1739717448803,-773.16,9.225e-05,2]
[353252575,1739717448813,-628.1,9.225e-05,2]
[353252576,1739717448823,-500.0,9.226e-05,2]
[353252577,1739717448834,-500.0,9.226e-05,2]
[353252578,1739717448845,-500.0,9.226e-05,2]
[353252579,1739717448855,-566.08,9.226e-05,2]
[353252580,1739717448864,-500.0,9.226e-05,2]
[353252581,1739717448875,-835.74,9.226e-05,2]
[353252582,1739717448885,-518.26042046,9.226e-05,2]
[353252583,1739717448896,-226.68405958,9.226e-05,2]
[353252584,1739717448906,-500.0,9.226e-05,2]
[353252585,1739717448916,-500.0,9.226e-05,2]
[353252586,1739717448926,-2081.49,9.226e-05,2]
[353252587,1739717448936,-864.91,9.226e-05,2]
[353252588,1739717448946,-500.0,9.305e-05,2]
[353252589,1739717448956,-1018.0,9.305e-05,2]
[353252590,1739717448968,-3193.03,9.305e-05,2]
[353252591,1739717448978,-2847.83,9.305e-05,2]
[353252592,1739717448988,-6548.19,9.305e-05,2]
[353252593,1739717448998,-1446.62,9.305e-05,2]
[353252594,1739717449008,-2484.47,9.305e-05,2]
[353252595,1739717449018,-500.0,9.305e-05,2]
[353252596,1739717449028,-1155.17,9.305e-05,2]
[353252597,1739717449037,-3114.18,9.305e-05,2]
[353252598,1739717449047,-500.0,9.305e-05,2]
[353252599,1739717449057,-575.73,9.305e-05,2]
[353252600,1739717449067,-1916.86,9.305e-05,2]
[353252601,1739717449078,-500.0,9.305e-05,2]
[353252602,1739717449088,-918.24,9.305e-05,2]
[353252603,1739717449098,-2747.87,9.305e-05,2]
[353252604,1739717449108,-5881.69,9.305e-05,2]
[353252605,1739717449118,-901.54,9.305e-05,2]
[353252606,1739717449128,-856.44,9.306e-05,2]
[353252607,1739717449140,-677.45,9.306e-05,2]
[353252608,1739717449152,-572.99,9.306e-05,2]
[353252609,1739717449163,-932.57,9.306e-05,2]
[353252610,1739717449174,-577.94,9.306e-05,2]
[353252611,1739717449183,-500.0,9.306e-05,2]
[353252612,1739717449193,-568.86,9.306e-05,2]
[353252613,1739717449203,-903.62,9.306e-05,2]
[353252614,1739717449212,-252.44183892,9.306e-05,2]
[353252615,1739717449222,-597.13,9.306e-05,2]
[353252616,1739717449232,-558.51,9.306e-05,2]
[353252617,1739717449245,-500.0,9.306e-05,2]
[353252618,1739717449256,-500.0,9.306e-05,2]
[353252619,1739717449266,-500.0,9.306e-05,2]
[353252620,1739717449277,-662.85,9.306e-05,2]
[353252621,1739717449287,-555.77,9.306e-05,2]
[353252622,1739717449297,-500.0,9.306e-05,2]
[353252623,1739717449308,-1745.18,9.306e-05,2]
[353252624,1739717449318,-2748.55,9.306e-05,2]
[353252625,1739717449330,-876.5,9.306e-05,2]
[353252626,1739717449341,-1447.48,9.306e-05,2]
[353252627,1739717449351,-500.0,9.306e-05,2]
[353252628,1739717449361,-14686.92,9.306e-05,2]
[353252629,1739717449370,-1062.39,9.306e-05,2]
[353252630,1739717449380,-607.65,9.306e-05,2]
[353252631,1739717449390,-500.0,9.306e-05,2]
[353252632,1739717449401,-1749.63,9.306e-05,2]
[353252633,1739717449411,-885.45,9.306e-05,2]
[353252634,1739717449420,-548.32,9.306e-05,2]
[353252635,1739717449430,-1196.96,9.306e-05,2]
[353252636,1739717449440,-500.0,9.306e-05,2]
[353252637,1739717449451,-636.14,9.306e-05,2]
[353252638,1739717449462,-500.0,9.306e-05,2]
[353252639,1739717449473,-454.48569604,9.306e-05,2]
[353252640,1739717449483,-1155.98,9.306e-05,2]
[353252641,1739717449492,-599.62,9.306e-05,2]
[353252642,1739717449503,-1131.72,9.306e-05,2]
[353252643,1739717449512,-500.0,9.306e-05,2]
[353252644,1739717449523,-603.68,9.306e-05,2]
[353252645,1739717449532,-500.0,9.306e-05,2]
[353252646,1739717449543,-652.07,9.306e-05,2]
[353252647,1739717449552,-3471.84,9.306e-05,2]
[353252648,1739717449562,-834.32,9.306e-05,2]
[353252649,1739717449571,-13832.39,9.306e-05,2]
[353252650,1739717449580,-1036.59,9.306e-05,2]
[353252651,1739717449590,-500.0,9.306e-05,2]
[353252652,1739717449599,-671.9,9.306e-05,2]
[353252653,1739717449608,-550.61,9.306e-05,2]
[353252654,1739717449619,-35868.36,9.306e-05,2]
[353252655,1739717449628,-500.0,9.307e-05,2]
[353252656,1739717449637,-500.0,9.307e-05,2]
[353252657,1739717449646,-500.0,9.307e-05,2]
[353252658,1739717449655,-500.0,9.307e-05,2]
[353252659,1739717449665,-618.5,9.307e-05,2]
[353252660,1739717449674,-500.0,9.307e-05,2]
[353252661,1739717449683,-769.62,9.307e-05,2]
[353252662,1739717449693,-628.33,9.307e-05,2]
[353252663,1739717449702,-756.53,9.307e-05,2]
[353252664,1739717449711,-558.49,9.307e-05,2]
[353252665,1739717449720,-500.0,9.307e-05,2]
[353252666,1739717449730,-603.24,9.307e-05,2]
[353252667,1739717449739,-2062.71,9.307e-05,2]
[353252668,1739717449748,-1082.1,9.307e-05,2]
[353252669,1739717449757,-2122.04,9.307e-05,2]
[353252670,1739717449767,-500.0,9.307e-05,2]
[353252671,1739717449776,-500.0,9.307e-05,2]
[353252672,1739717449785,-639.36,9.307e-05,2]
[353252673,1739717449794,-571.69,9.307e-05,2]
[353252674,1739717449803,-500.0,9.307e-05,2]
[353252675,1739717449812,-561.85,9.307e-05,2]
[353252676,1739717449821,-2105.32,9.307e-05,2]
[353252677,1739717449901,-505.08,9.307e-05,2]
[353252678,1739717449911,-665.07,9.307e-05,2]
[353252679,1739717449920,-500.0,9.307e-05,2]
[353252680,1739717449930,-500.0,9.307e-05,2]
[353252681,1739717449939,-832.59,9.307e-05,2]
[353252682,1739717449948,-663.46,9.307e-05,2]
[353252683,1739717449958,-500.0,9.307e-05,2]
[353252684,1739717449968,-596.3,9.307e-05,2]
[353252685,1739717449977,-500.0,9.307e-05,2]
[353252686,1739717449986,-500.0,9.307e-05,2]
[353252687,1739717449996,-529.6,9.307e-05,2]
[353252688,1739717450005,-500.0,9.307e-05,2]
[353252689,1739717450015,-1007.93,9.307e-05,2]
[353252690,1739717450024,-649.34,9.307e-05,2]
[353252691,1739717450033,-629.31690969,9.307e-05,2]
[353252692,1739717450042,-773.16,9.307e-05,2]
[353252693,1739717450052,-628.1,9.307e-05,2]
[353252694,1739717450061,-500.0,9.308e-05,2]
[353252695,1739717450070,-500.0,9.308e-05,2]
[353252696,1739717450080,-500.0,9.308e-05,2]
[353252697,1739717450090,-566.08,9.308e-05,2]
[353252698,1739717450099,-500.0,9.308e-05,2]
[353252699,1739717450109,-835.74,9.308e-05,2]
[353252700,1739717450118,-500.0,9.308e-05,2]
[353252701,1739717450127,-500.0,9.308e-05,2]
[353252702,1739717450137,-2081.49,9.308e-05,2]
[353252703,1739717450146,-864.91,9.308e-05,2]
[353252704,1739717450155,-168.26547255,9.342e-05,2]
[353252705,1739717450165,-500.0,9.387e-05,2]
[353252706,1739717450174,-1018.0,9.387e-05,2]
[353252707,1739717450183,-3193.03,9.387e-05,2]
[353252708,1739717450193,-2847.83,9.387e-05,2]
[353252709,1739717450202,-6548.19,9.387e-05,2]
[353252710,1739717450211,-1446.62,9.387e-05,2]
[353252711,1739717450220,-2484.47,9.387e-05,2]
[353252712,1739717450229,-500.0,9.387e-05,2]
[353252713,1739717450239,-1155.17,9.387e-05,2]
[353252714,1739717450252,-3114.18,9.387e-05,2]
[353252715,1739717450262,-500.0,9.387e-05,2]
[353252716,1739717450271,-575.73,9.387e-05,2]
[353252717,1739717450281,-1916.86,9.387e-05,2]
[353252718,1739717450291,-500.0,9.387e-05,2]
[353252719,1739717450300,-918.24,9.387e-05,2]
[353252720,1739717450309,-2747.87,9.387e-05,2]
[353252721,1739717450319,-5881.69,9.387e-05,2]
[353252722,1739717450329,-901.54,9.387e-05,2]
[353252723,1739717450338,-247.21984906,9.389e-05,2]
[353252724,1739717450347,-500.0,9.389e-05,2]
[353252725,1739717450357,-500.0,9.389e-05,2]
[353252726,1739717450366,-500.0,9.389e-05,2]
[353252727,1739717450377,-618.5,9.389e-05,2]
[353252728,1739717450386,-500.0,9.389e-05,2]
[353252729,1739717450396,-769.62,9.389e-05,2]
[353252730,1739717450405,-628.33,9.389e-05,2]
[353252731,1739717450414,-756.53,9.389e-05,2]
[353252732,1739717450423,-558.49,9.389e-05,2]
[353252733,1739717450433,-500.0,9.389e-05,2]
[353252734,1739717450442,-603.24,9.389e-05,2]
[353252735,1739717450452,-2062.71,9.389e-05,2]
[353252736,1739717450462,-1082.1,9.389e-05,2]
[353252737,1739717450471,-2122.04,9.389e-05,2]
[353252738,1739717450480,-856.44,9.389e-05,2]
[353252739,1739717450490,-500.0,9.389e-05,2]
[353252740,1739717450499,-500.0,9.389e-05,2]
[353252741,1739717450509,-639.36,9.389e-05,2]
[353252742,1739717450519,-571.69,9.389e-05,2]
[353252743,1739717450528,-677.45,9.389e-05,2]
[353252744,1739717450537,-572.99,9.389e-05,2]
[353252745,1739717450547,-932.57,9.389e-05,2]
[353252746,1739717450556,-500.0,9.389e-05,2]
[353252747,1739717450566,-577.94,9.389e-05,2]
[353252748,1739717450575,-561.85,9.389e-05,2]
[353252749,1739717450584,-228.8893035,9.389e-05,2]
[353252750,1739717450593,-2105.32,9.389e-05,2]
[353252751,1739717450602,-568.86,9.389e-05,2]
[353252752,1739717450611,-505.08,9.389e-05,2]
[353252753,1739717450620,-665.07,9.389e-05,2]
[353252754,1739717450629,-500.0,9.389e-05,2]
[353252755,1739717450639,-500.0,9.389e-05,2]
[353252756,1739717450649,-832.59,9.389e-05,2]
[353252757,1739717450658,-903.62,9.389e-05,2]
[353252758,1739717450667,-663.46,9.389e-05,2]
[353252759,1739717450676,-500.0,9.389e-05,2]
[353252760,1739717450685,-596.3,9.389e-05,2]
[353252761,1739717450694,-500.0,9.389e-05,2]
[353252762,1739717450703,-500.0,9.389e-05,2]
[353252763,1739717450712,-529.6,9.389e-05,2]
[353252764,1739717450722,-597.13,9.389e-05,2]
[353252765,1739717450731,-558.51,9.389e-05,2]
[353252766,1739717450740,-500.0,9.389e-05,2]
[353252767,1739717450750,-500.0,9.389e-05,2]
[353252768,1739717450759,-1007.93,9.389e-05,2]
[353252769,1739717450769,-500.0,9.389e-05,2]
[353252770,1739717450778,-500.0,9.389e-05,2]
[353252771,1739717450787,-649.34,9.389e-05,2]
[353252772,1739717450796,-662.85,9.389e-05,2]
[353252773,1739717450805,-555.77,9.389e-05,2]
[353252774,1739717450815,-500.0,9.389e-05,2]
[353252775,1739717450824,-1745.18,9.389e-05,2]
[353252776,1739717450834,-2748.55,9.389e-05,2]
[353252777,1739717450843,-876.5,9.389e-05,2]
[353252778,1739717450853,-1447.48,9.389e-05,2]
[353252779,1739717450864,-500.0,9.389e-05,2]
[353252780,1739717450874,-1062.39,9.389e-05,2]
[353252781,1739717450883,-14686.92,9.389e-05,2]
[353252782,1739717450892,-607.65,9.389e-05,2]
[353252783,1739717450901,-500.0,9.389e-05,2]
[353252784,1739717450910,-1749.63,9.389e-05,2]
[353252785,1739717450919,-885.45,9.389e-05,2]
[353252786,1739717450929,-548.32,9.389e-05,2]
[353252787,1739717450938,-1196.96,9.389e-05,2]
[353252788,1739717451016,-500.0,9.389e-05,2]
[353252789,1739717451026,-636.14,9.389e-05,2]
[353252790,1739717451035,-500.0,9.389e-05,2]
[353252791,1739717451044,-773.16,9.389e-05,2]
[353252792,1739717451053,-1155.98,9.389e-05,2]
[353252793,1739717451063,-599.62,9.389e-05,2]
[353252794,1739717451072,-1131.72,9.389e-05,2]
[353252795,1739717451081,-500.0,9.389e-05,2]
[353252796,1739717451091,-628.1,9.389e-05,2]
[353252797,1739717451100,-603.68,9.389e-05,2]
[353252798,1739717451109,-500.0,9.389e-05,2]
[353252799,1739717451118,-652.07,9.389e-05,2]
[353252800,1739717451129,-3471.84,9.389e-05,2]
[353252801,1739717451138,-834.32,9.389e-05,2]
[353252802,1739717451149,-13832.39,9.389e-05,2]
[353252803,1739717451158,-1036.59,9.389e-05,2]
[353252804,1739717451168,-500.0,9.389e-05,2]
[353252805,1739717451178,-671.9,9.389e-05,2]
[353252806,1739717451189,-550.61,9.389e-05,2]
[353252807,1739717451199,-5932.99668225,9.389e-05,2]
[353252808,1739717517531,2631.76,5e-05,2]
[353252839,1739718548115,-490.0,7.751e-05,2]
[353252884,1739718632335,-45.823863,7.751e-05,2]
[353252886,1739718632347,-196.2744193,7.791e-05,2]
[353252888,1739718632357,-800.0,8.22e-05,2]
[353252890,1739718632367,-500.0,8.496e-05,2]
[353252891,1739718632377,-300.0,8.726e-05,2]
[353252893,1739718632387,-1552.8,8.727e-05,2]
[353252895,1739718632397,-500.0,8.727e-05,2]
[353252896,1739718632407,-500.0,8.727e-05,2]
[353252897,1739718632417,-516.52574689,8.728e-05,2]
[353252898,1739718632426,-500.0,8.728e-05,2]
[353252899,1739718632436,-500.0,8.728e-05,2]
[353252900,1739718632446,-504.7154657,8.728e-05,2]
[353252901,1739718632456,-500.0,8.728e-05,2]
[353252902,1739718632466,-581.17933971,8.728e-05,2]
[353252903,1739718632476,-272.32219955,8.728e-05,2]
[353252904,1739718632486,-500.0,8.728e-05,2]
[353252905,1739718632496,-500.0,8.728e-05,2]
[353252906,1739718632506,-500.0,8.728e-05,2]
[353252907,1739718632517,-500.0,8.728e-05,2]
[353252908,1739718632526,-500.92595492,8.728e-05,2]
[353252910,1739718632537,-500.0,8.728e-05,2]
[353252912,1739718632546,-500.0,8.728e-05,2]
[353252913,1739718632556,-453.95044944,8.728e-05,2]
[353252915,1739718632566,-150.04621078,8.728e-05,2]
[353252917,1739718632577,-500.0,8.728e-05,2]
[353252919,1739718632587,-500.0,8.728e-05,2]
[353252921,1739718632596,-505.16806753,8.728e-05,2]
[353252923,1739718632606,-576.79,8.728e-05,2]
[353252926,1739718632616,-500.0,8.728e-05,2]
[353252927,1739718632625,-500.0,8.728e-05,2]
[353252930,1739718632636,-500.0,8.728e-05,2]
[353252932,1739718632645,-500.0,8.728e-05,2]
[353252934,1739718632655,-500.0,8.728e-05,2]
[353252936,1739718632664,-500.0,8.728e-05,2]
[353252937,1739718632674,-500.0,8.728e-05,2]
[353252939,1739718632685,-500.0,8.728e-05,2]
[353252940,1739718632694,-500.0,8.728e-05,2]
[353252941,1739718632703,-275.57954545,8.728e-05,2]
[353252942,1739718632713,-500.0,8.728e-05,2]
[353252943,1739718632723,-500.0,8.728e-05,2]
[353252944,1739718632732,-500.52297676,8.728e-05,2]
[353252945,1739718632742,-500.0,8.728e-05,2]
[353252946,1739718632752,-500.0,8.728e-05,2]
[353252947,1739718632763,-500.0,8.728e-05,2]
[353252948,1739718632772,-500.0,8.728e-05,2]
[353252949,1739718632784,-500.0,8.728e-05,2]
[353252950,1739718632794,-500.0,8.728e-05,2]
[353252951,1739718632803,-617.57,8.728e-05,2]
[353252952,1739718632813,-615.34648727,8.728e-05,2]
[353252953,1739718632826,-500.0,8.728e-05,2]
[353252954,1739718632835,-500.0,8.728e-05,2]
[353252955,1739718632844,-500.0,8.728e-05,2]
[353252956,1739718632855,-500.0,8.728e-05,2]
[353252957,1739718632865,-500.0,8.728e-05,2]
[353252958,1739718632874,-404.15634449,8.728e-05,2]
[353252959,1739718632883,-500.0,8.728e-05,2]
[353252960,1739718632892,-501.09396162,8.728e-05,2]
[353252961,1739718632901,-500.0,8.728e-05,2]
[353252962,1739718632910,-500.0,8.728e-05,2]
[353252963,1739718632920,-500.0,8.728e-05,2]
[353252964,1739718632931,-500.0,8.728e-05,2]
[353252965,1739718632940,-156.10010583,8.728e-05,2]
[353252966,1739718632950,-500.0,8.728e-05,2]
[353252967,1739718632960,-570.43118215,8.728e-05,2]
[353252968,1739718632970,-500.0,8.728e-05,2]
[353252969,1739718632979,-500.0,8.728e-05,2]
[353252970,1739718632989,-500.0,8.728e-05,2]
[353252971,1739718632999,-517.24813501,8.728e-05,2]
[353252972,1739718633009,-500.0,8.728e-05,2]
[353252973,1739718633018,-500.0,8.728e-05,2]
[353252974,1739718633028,-500.0,8.728e-05,2]
[353252975,1739718633038,-500.0,8.728e-05,2]
[353252976,1739718633048,-500.0,8.728e-05,2]
[353252977,1739718633057,-500.0,8.728e-05,2]
[353252978,1739718633067,-500.0,8.728e-05,2]
[353252979,1739718633078,-500.0,8.728e-05,2]
[353252980,1739718633088,-500.0,8.728e-05,2]
[353252981,1739718633098,-310.52549909,8.728e-05,2]
[353252982,1739718633108,-3676.05,8.728e-05,2]
[353252983,1739718633118,-500.0,8.728e-05,2]
[353252984,1739718633128,-500.0,8.728e-05,2]
[353252985,1739718633138,-500.0,8.728e-05,2]
[353252986,1739718633149,-542.96958676,8.728e-05,2]
[353252987,1739718633158,-500.0,8.728e-05,2]
[353252988,1739718633168,-217.44993648,8.728e-05,2]
[353252989,1739718633178,-593.40469641,8.728e-05,2]
[353252990,1739718633187,-500.0,8.728e-05,2]
[353252991,1739718633197,-378.73701508,8.728e-05,2]
[353252992,1739718633206,-500.0,8.728e-05,2]
[353252993,1739718633216,-500.0,8.728e-05,2]
[353252994,1739718633226,-500.0,8.728e-05,2]
[353252995,1739718633236,-500.0,8.728e-05,2]
[353252996,1739718633246,-500.0,8.728e-05,2]
[353252997,1739718633255,-28.25687737,8.728e-05,2]
[353252998,1739718633434,-471.74312263,8.728e-05,2]
[353252999,1739718633445,-500.0,8.728e-05,2]
[353253000,1739718633455,-223.45687727,8.728e-05,2]
[353253001,1739718633467,-276.54312273,8.728e-05,2]
[353253002,1739718633477,-636.25,8.728e-05,2]